lending/lending_fUSD_20240111
["ID","MTS","AMOUNT","RATE_DAILY","PERIOD"]
[311236695,1704989444104,-150.0,0.00034,20]
[311236697,1704989444114,-1020.75,0.00034023,2]
[311236699,1704989444123,-1000.0,0.00034241,2]
[311236701,1704989444132,-250.0,0.00034274,2]
[311236703,1704989444142,-7916.87752569,0.00034445,6]
[311236705,1704989444151,-153.09999134,0.00034475,2]
[311236707,1704989444160,-270.02671994,0.0003451,2]
[311236709,1704989444173,-1216.278942,0.0003452,2]
[311236711,1704989444183,-928.107962,0.0003452,2]
[311236713,1704989444192,-17859.015565,0.0003452,2]
[311236715,1704989444202,-5044.491401,0.0003452,2]
[311236717,1704989444211,-402.006701,0.0003452,2]
[311236719,1704989444221,-2741.42,0.00034521,2]
[311236721,1704989444230,-350.0,0.00034548,2]
[311236723,1704989444240,-150.0,0.00034548,2]
[311236726,1704989444249,-200.0,0.00034548,5]
[311236728,1704989444259,-176.05,0.00034548,2]
[311236729,1704989444268,-204.0,0.00034635,19]
[311236731,1704989444277,-250.0,0.00034654,111]
[311236733,1704989444286,-180.0,0.00034658,2]
[311236736,1704989444296,-11324.20358883,0.0003468,30]
[311236738,1704989444305,-153.84,0.00034703,2]
[311236739,1704989444314,-453.19,0.00034703,2]
[311236741,1704989444323,-1824.418413,0.00034794,2]
[311236744,1704989444333,-1392.161943,0.00034794,2]
[311236746,1704989444343,-26788.523348,0.00034794,2]
[311236748,1704989444352,-7566.737102,0.00034794,2]
[311236750,1704989444362,-603.010052,0.00034794,2]
[311236752,1704989444370,-2013.21858317,0.000348,2]
[311236753,1704989444380,-1049.59645495,0.000348,2]
[311236755,1704989444390,-4177.80941555,0.000348,2]
[311236757,1704989444399,-33668.3024,0.000348,3]
[311236760,1704989444409,-506.91876202,0.00034898,4]
[311236762,1704989444422,-590.30393313,0.00034899,2]
[311236764,1704989444431,-545.66666845,0.00034899,2]
[311236766,1704989444441,-381990.17159047,0.000349,2]
[311236768,1704989444453,-1964.26494235,0.000349,2]
[311236770,1704989444462,-1964.26494231,0.000349,2]
[311236772,1704989444471,-1964.26494231,0.000349,2]
[311236774,1704989444481,-1964.26494231,0.000349,2]
[311236776,1704989444490,-1964.26494231,0.000349,2]
[311236778,1704989444499,-1964.26494231,0.000349,2]
[311236780,1704989444508,-2100.0,0.000349,12]
[311236782,1704989444518,-1914.34594678,0.000349,24]
[311236784,1704989444527,-157.34854192,0.0003491,2]
[311236786,1704989444537,-2432.557885,0.00034931,2]
[311236788,1704989444547,-1856.215925,0.00034931,2]
[311236790,1704989444557,-35718.031131,0.00034931,2]
[311236792,1704989444566,-10088.982803,0.00034931,2]
[311236794,1704989444575,-804.013403,0.00034931,2]
[311236796,1704989444584,-464.91147385,0.0003498,3]
[311236798,1704989444593,-291.36136514,0.0003498,3]
[311236800,1704989444602,-270.02671994,0.0003499,2]
[311236802,1704989444611,-4392.81918418,0.00034997,2]
[311236804,1704989444621,-425.85471311,0.00034999,4]
[311236806,1704989444631,-500.0,0.00034999,4]
[311236808,1704989444641,-558.1682203,0.00034999,4]
[311236810,1704989444650,-500.0,0.00034999,4]
[311236812,1704989444660,-207.11313731,0.00034999,4]
[311236814,1704989444671,-500.0,0.00034999,4]
[311236816,1704989444681,-500.0,0.00034999,4]
[311236818,1704989444691,-500.0,0.00034999,4]
[311236820,1704989444700,-500.0,0.00034999,4]
[311236822,1704989444710,-519.70851893,0.00034999,4]
[311236824,1704989444720,-500.0,0.00034999,2]
[311236826,1704989444730,-500.0,0.00034999,2]
[311236828,1704989444739,-199.4,0.00034999,2]
[311236830,1704989444748,-500.0,0.00034999,2]
[311236832,1704989444758,-500.0,0.00034999,2]
[311236834,1704989444767,-592.01189227,0.00034999,2]
[311236836,1704989444777,-500.0,0.00034999,2]
[311236838,1704989444786,-210.79813356,0.00034999,2]
[311236840,1704989444795,-500.0,0.00034999,7]
[311236843,1704989444805,-224.22477118,0.00034999,2]
[311236845,1704989444814,-533.09860017,0.00034999,7]
[311236846,1704989444824,-319.0089192,0.00034999,7]
[311236848,1704989444833,-500.0,0.00034999,7]
[311236850,1704989444842,-418.16857838,0.00034999,7]
[311236852,1704989444851,-178.72179619,0.00034999,4]
[311236854,1704989444861,-320.55084894,0.00034999,4]
[311236856,1704989444870,-349.61505751,0.00034999,4]
[311236859,1704989444881,-300.0,0.00034999,2]
[311236861,1704989444890,-300.0,0.00034999,2]
[311236863,1704989444899,-300.0,0.00034999,2]
[311236865,1704989444908,-426.98244032,0.00034999,4]
[311236867,1704989444922,-316.758767,0.00034999,4]
[311236869,1704989444931,-410.86743302,0.00034999,2]
[311236871,1704989444940,-522.56432187,0.00034999,2]
[311236873,1704989444949,-223.95613794,0.00034999,7]
[311236875,1704989444959,-399.16215744,0.00034999,2]
[311236877,1704989444968,-171.06949605,0.00034999,7]
[311236879,1704989444978,-342.13899209,0.00034999,2]
[311236881,1704989444987,-417.01752444,0.00034999,4]
[311236882,1704989444996,-164.34697321,0.00034999,2]
[311236884,1704989445006,-255.15840755,0.00035,4]
[311236887,1704989445016,-519.54844331,0.00035,4]
[311236889,1704989445026,-106735.58227547,0.00035,4]
[311236891,1704989445036,-2528.67982368,0.00035,10]
[311236893,1704989445046,-16499.22203045,0.00035,2]
[311236895,1704989445055,-1804.3259406,0.00035,4]
[311236897,1704989445066,-155.0,0.00035,2]
[311236899,1704989445075,-688706.81421779,0.00035,2]
[311236901,1704989445084,-2500.0,0.00035,2]
[311236903,1704989445093,-15716.17370559,0.00035,7]
[311236905,1704989445103,-1254.85509732,0.00035,4]
[311236907,1704989445112,-5000.0,0.00035,2]
[311236909,1704989445122,-92217.57074463,0.00035,2]
[311236911,1704989445131,-600.0,0.00035,3]
[311236913,1704989445140,-620.87228107,0.00035,4]
[311236915,1704989445149,-185.50990881,0.00035,4]
[311236917,1704989445158,-213.14964529,0.00035,2]
[311236919,1704989445170,-4635.26547838,0.00035,2]
[311236921,1704989445179,-23066.9346401,0.00035,7]
[311236923,1704989445188,-332.37554266,0.00035,7]
[311236925,1704989445197,-1380.80198442,0.00035,2]
[311236927,1704989445206,-1020.75,0.00035001,2]
[311236928,1704989445215,-450.0,0.0003502,3]
[311236929,1704989445227,-1114.27390428,0.00035065,7]
[311236930,1704989445236,-3040.697356,0.00035068,2]
[311236931,1704989445245,-2320.269906,0.00035068,2]
[311236932,1704989445254,-44647.538913,0.00035068,2]
[311236933,1704989445263,-12611.228504,0.00035068,2]
[311236934,1704989445272,-1005.016754,0.00035068,2]
[311236935,1704989445282,-151.02717831,0.00035096,2]
[311236936,1704989445291,-203.84769879,0.00035096,5]
[311236938,1704989445301,-176.05,0.00035096,2]
[311236940,1704989445310,-1964.26494231,0.00035284,2]
[311236942,1704989445319,-268.63755361,0.00035341,2]
[311236944,1704989445328,-4256.976298,0.00035342,2]
[311236946,1704989445337,-3248.377869,0.00035342,2]
[311236948,1704989445347,-62506.554479,0.00035342,2]
[311236950,1704989445356,-17655.719906,0.00035342,2]
[311236952,1704989445365,-1407.023455,0.00035342,2]
[311236954,1704989445374,-7916.87752569,0.00035355,8]
[311236956,1704989445383,-255.10749778,0.0003537,20]
[311236958,1704989445392,-153.09999134,0.0003539,2]
[311236960,1704989445401,-1808.69,0.00035412,2]
[311236962,1704989445411,-1447.86,0.00035585,10]
[311236964,1704989445422,-2260.6,0.00035585,10]
[311236966,1704989445432,-4804.0,0.00035595,30]
[311236968,1704989445442,-4804.0,0.00035595,60]
[311236970,1704989445451,-3134.68900182,0.000356,2]
[311236972,1704989445460,-150.0,0.00035616,2]
[311236974,1704989445469,-300.0,0.00035616,7]
[311236976,1704989445478,-186.93691744,0.00035616,12]
[311236978,1704989445488,-153.84,0.00035616,2]
[311236980,1704989445499,-176.05,0.00035644,2]
[311236982,1704989445509,-1411.22,0.000357,7]
[311236984,1704989445518,-1956.07,0.000357,7]
[311236986,1704989445527,-2723.82,0.000357,7]
[311236987,1704989445537,-2741.42,0.00035798,2]
[311236990,1704989445547,-20803.72,0.000358,30]
[311236991,1704989445557,-190.27601325,0.00035865,8]
[311236994,1704989445566,-1020.75,0.0003598,2]
[311236996,1704989445575,-200.0,0.00035987,2]
[311236998,1704989445585,-2196.40959209,0.00035997,2]
[311236999,1704989445595,-56690.35014993,0.00036,2]
[311237018,1704989445765,-61891.64071603,0.00036,4]
[311237020,1704989445776,-115000.0,0.00036,2]
[311237022,1704989445785,-11517.0,0.00036,2]
[311237024,1704989445795,-1000.0,0.00036,6]
[311237026,1704989445805,-1000.0,0.00036,6]
[311237028,1704989445814,-1000.0,0.00036,6]
[311237030,1704989445823,-1000.0,0.00036,6]
[311237032,1704989445833,-150.53,0.00036,2]
[311237034,1704989445841,-150.53,0.00036,2]
[311237036,1704989445851,-150.53,0.00036,2]
[311237038,1704989445860,-150.53,0.00036,2]
[311237040,1704989445869,-150.53,0.00036,2]
[311237042,1704989445880,-150.53,0.00036,2]
[311237044,1704989445892,-150.53,0.00036,2]
[311237046,1704989445901,-150.53,0.00036,2]
[311237048,1704989445911,-150.53,0.00036,2]
[311237050,1704989445922,-150.53,0.00036,2]
[311237052,1704989445933,-150.53,0.00036,2]
[311237054,1704989445942,-150.53,0.00036,2]
[311237056,1704989445951,-150.53,0.00036,2]
[311237058,1704989445960,-150.53,0.00036,2]
[311237060,1704989445970,-150.53,0.00036,2]
[311237062,1704989445980,-150.53,0.00036,2]
[311237064,1704989445989,-150.53,0.00036,2]
[311237066,1704989445999,-150.53,0.00036,2]
[311237068,1704989446008,-150.53,0.00036,2]
[311237070,1704989446018,-150.53,0.00036,2]
[311237072,1704989446027,-150.53,0.00036,2]
[311237074,1704989446037,-150.53,0.00036,2]
[311237076,1704989446047,-150.53,0.00036,2]
[311237078,1704989446056,-150.53,0.00036,2]
[311237080,1704989446066,-150.53,0.00036,2]
[311237083,1704989446075,-150.53,0.00036,2]
[311237084,1704989446085,-150.53,0.00036,2]
[311237088,1704989446095,-150.53,0.00036,2]
[311237091,1704989446104,-150.53,0.00036,2]
[311237093,1704989446113,-150.53,0.00036,2]
[311237095,1704989446123,-150.53,0.00036,2]
[311237097,1704989446132,-150.53,0.00036,2]
[311237100,1704989446142,-150.53,0.00036,2]
[311237103,1704989446151,-150.53,0.00036,2]
[311237106,1704989446161,-150.53,0.00036,2]
[311237109,1704989446173,-150.53,0.00036,2]
[311237112,1704989446182,-150.53,0.00036,2]
[311237115,1704989446192,-150.53,0.00036,2]
[311237118,1704989446201,-150.53,0.00036,2]
[311237121,1704989446210,-150.53,0.00036,2]
[311237124,1704989446220,-150.53,0.00036,2]
[311237127,1704989446230,-150.53,0.00036,2]
[311237132,1704989446240,-150.53,0.00036,2]
[311237136,1704989446249,-150.53,0.00036,2]
[311237140,1704989446259,-150.53,0.00036,2]
[311237144,1704989446269,-150.53,0.00036,2]
[311237148,1704989446279,-150.53,0.00036,2]
[311237151,1704989446288,-150.53,0.00036,2]
[311237154,1704989446297,-150.53,0.00036,2]
[311237157,1704989446306,-150.53,0.00036,2]
[311237160,1704989446318,-150.53,0.00036,2]
[311237164,1704989446327,-150.53,0.00036,2]
[311237167,1704989446337,-150.53,0.00036,2]
[311237170,1704989446346,-150.53,0.00036,2]
[311237173,1704989446356,-150.53,0.00036,2]
[311237176,1704989446365,-150.53,0.00036,2]
[311237179,1704989446374,-150.53,0.00036,2]
[311237182,1704989446383,-150.53,0.00036,2]
[311237184,1704989446392,-204.0,0.00036045,22]
[311237187,1704989446402,-897.48,0.00036045,2]
[311237190,1704989446411,-157.28,0.00036146,2]
[311237193,1704989446421,-1914.34594677,0.0003615,26]
[311237196,1704989446430,-961.87317765,0.00036164,4]
[311237198,1704989446439,-176.05,0.00036192,2]
[311237201,1704989446448,-7916.87752569,0.00036264,9]
[311237204,1704989446457,-153.09999134,0.00036305,2]
[311237207,1704989446466,-1500.0,0.000364,24]
[311237209,1704989446475,-200.0,0.00036431,2]
[311237211,1704989446484,-153.84,0.0003653,2]
[311237213,1704989446494,-150.39533009,0.00036595,30]
[311237215,1704989446504,-1058.8,0.00036613,15]
[311237216,1704989446513,-510.91711582,0.00036665,9]
[311237218,1704989446523,-2000.0,0.000367,2]
[311237220,1704989446533,-201.91076929,0.00036704,2]
[311237223,1704989446544,-237.26198864,0.0003674,2]
[311237225,1704989446554,-349.45161643,0.0003674,2]
[311237227,1704989446565,-65952.87559131,0.000368,3]
[311237229,1704989446575,-373088.84220534,0.00036804,14]
[311237231,1704989446585,-12270.30246013,0.00036804,10]
[311237233,1704989446595,-4302.16494544,0.00036804,10]
[311237235,1704989446606,-46076.39346077,0.00036804,11]
[311237237,1704989446616,-1964.26494231,0.00036863,2]
[311237239,1704989446626,-2723.82,0.000369,7]
[311237241,1704989446636,-2600.0,0.000369,13]
[311237243,1704989446646,-1500.0,0.000369,24]
[311237245,1704989446655,-200.0,0.00036987,3]
[311237247,1704989446665,-5000.0,0.00037,3]
[311237249,1704989446681,-155.0,0.00037,4]
[311237251,1704989446691,-650.0,0.00037,3]
[311237253,1704989446701,-310.27195603,0.00037,4]
[311237255,1704989446710,-1956.07,0.00037,7]
[311237257,1704989446720,-1000.0,0.00037,7]
[311237259,1704989446729,-400.0,0.00037,7]
[311237261,1704989446738,-1000.0,0.00037,7]
[311237263,1704989446747,-496.325101,0.0003701,2]
[311237266,1704989446757,-399.135471,0.0003701,2]
[311237268,1704989446766,-3466.81563,0.0003701,2]
[311237270,1704989446775,-2161.108045,0.0003701,2]
[311237272,1704989446784,-179.629477,0.0003701,2]
[311237274,1704989446794,-855.576108,0.0003701,2]
[311237276,1704989446804,-162.335388,0.0003701,2]
[311237278,1704989446813,-2741.42,0.00037075,2]
[311237280,1704989446823,-1000.0,0.00037095,2]
[311237282,1704989446832,-261.97,0.000371,2]
[311237284,1704989446841,-34706.33463739,0.00037107,8]
[311237286,1704989446851,-806.0,0.00037145,3]
[311237288,1704989446861,-150.37318911,0.00037149,2]
[311237290,1704989446870,-7916.87752569,0.00037173,10]
[311237292,1704989446879,-1411.22,0.000372,7]
[311237294,1704989446892,-153.09999134,0.0003722,2]
[311237296,1704989446902,-2013.21858316,0.000373,2]
[311237298,1704989446912,-1049.59645494,0.000373,2]
[311237300,1704989446926,-4177.80941554,0.000373,2]
[311237302,1704989446935,-207.49696392,0.000373,2]
[311237304,1704989446944,-164.57054148,0.0003735,2]
[311237306,1704989446955,-1000.0,0.000374,24]
[311237308,1704989446964,-1500.0,0.000374,24]
[311237310,1704989446974,-1914.34594677,0.000374,28]
[311237311,1704989446983,-153.84,0.00037443,2]
[311237314,1704989446993,-204.0,0.00037454,24]
[311237316,1704989447003,-496.325101,0.00037472,2]
[311237318,1704989447013,-399.135471,0.00037472,2]
[311237320,1704989447022,-2161.108045,0.00037472,2]
[311237322,1704989447032,-3466.81563,0.00037472,2]
[311237323,1704989447041,-855.576108,0.00037472,2]
[311237325,1704989447051,-200.0,0.0003749,5]
[311237328,1704989447062,-150.0,0.00037499,2]
[311237330,1704989447071,-150.0,0.00037499,2]
[311237332,1704989447081,-1490.0,0.000375,12]
[311237334,1704989447090,-200.0,0.000375,5]
[311237336,1704989447100,-450.0,0.000375,3]
[311237338,1704989447109,-307.68042803,0.000375,2]
[311237340,1704989447119,-367.5,0.000375,30]
[311237342,1704989447128,-735.01,0.000375,30]
[311237344,1704989447138,-20803.72,0.000375,30]
[311237346,1704989447147,-367.5,0.000375,30]
[311237348,1704989447159,-295.06449,0.00037534,14]
[311237350,1704989447174,-153.0,0.000376,7]
[311237352,1704989447184,-735.01,0.000376,30]
[311237354,1704989447194,-170.48951083,0.00037606,30]
[311237356,1704989447204,-286.16365996,0.00037606,30]
[311237358,1704989447214,-222.27339983,0.00037606,30]
[311237361,1704989447224,-6594.86805012,0.00037606,3]
[311237363,1704989447233,-153.42904313,0.00037606,7]
[311237365,1704989447242,-445.76274583,0.00037606,120]
[311237366,1704989447252,-4589.00619175,0.00037606,2]
[311237368,1704989447260,-314.36143013,0.00037606,30]
[311237370,1704989447269,-38542.3939335,0.00037606,2]
[311237372,1704989447278,-37049.20528583,0.00037606,120]
[311237374,1704989447287,-234.63295428,0.00037606,120]
[311237376,1704989447296,-428.3488519,0.00037606,2]
[311237378,1704989447305,-1018.09051807,0.00037606,2]
[311237380,1704989447314,-20273.55933752,0.00037606,2]
[311237383,1704989447324,-4312.80595345,0.00037606,2]
[311237385,1704989447333,-2500.0,0.00037606,2]
[311237386,1704989447342,-552.90125293,0.00037606,2]
[311237388,1704989447352,-26525.99645431,0.00037606,2]
[311237390,1704989447360,-2271.03492057,0.00037606,2]
[311237392,1704989447369,-229.75228341,0.00037606,2]
[311237394,1704989447379,-514.47316966,0.00037606,2]
[311237396,1704989447388,-1577.3788805,0.00037606,2]
[311237397,1704989447397,-425775.18762099,0.00037606,2]
[311237398,1704989447406,-871.2949197,0.00037606,2]
[311237399,1704989447415,-26330.63521286,0.00037606,2]
[311237400,1704989447428,-9101.70766296,0.00037606,2]
[311237401,1704989447437,-459.97785104,0.00037606,2]
[311237402,1704989447446,-378.20017143,0.00037606,2]
[311237403,1704989447455,-14534.55140957,0.00037606,2]
[311237404,1704989447465,-226.43485623,0.00037606,2]
[311237406,1704989447474,-2034.29039599,0.00037606,2]
[311237408,1704989447483,-385.73000421,0.00037606,2]
[311237410,1704989447492,-523.00005878,0.00037606,2]
[311237412,1704989447501,-239.41436409,0.00037606,2]
[311237414,1704989447510,-303.2912829,0.00037606,120]
[311237416,1704989447520,-989.87447982,0.00037606,2]
[311237418,1704989447529,-347.90876564,0.00037606,2]
[311237420,1704989447538,-5027.28352447,0.00037606,35]
[311237422,1704989447548,-9319.69877245,0.00037606,2]
[311237424,1704989447558,-495.72712304,0.00037606,120]
[311237426,1704989447568,-5000.0,0.00037606,2]
[311237428,1704989447578,-205.30520291,0.00037606,4]
[311237430,1704989447587,-166.1338265,0.00037606,21]
[311237432,1704989447596,-1753.76308041,0.00037606,2]
[311237434,1704989447605,-394.51917785,0.00037606,120]
[311237435,1704989447614,-550.17390916,0.00037606,2]
[311237437,1704989447623,-500.0,0.00037606,120]
[311237439,1704989447633,-1279.597124,0.00037606,2]
[311237442,1704989447643,-262.90945062,0.00037606,30]
[311237443,1704989447652,-242.09863262,0.00037699,7]
[311237446,1704989447662,-50118.02934142,0.000378,30]
[311237447,1704989447674,-2723.82,0.000378,7]
[311237449,1704989447683,-437.75,0.000378,3]
[311237451,1704989447692,-437.75,0.000378,3]
[311237453,1704989447702,-437.75,0.000378,3]
[311237455,1704989447712,-437.75,0.000378,3]
[311237457,1704989447721,-437.75,0.000378,3]
[311237459,1704989447730,-437.75,0.000378,3]
[311237461,1704989447739,-437.75,0.000378,3]
[311237463,1704989447749,-437.75,0.000378,3]
[311237465,1704989447759,-437.75,0.000378,3]
[311237467,1704989447769,-437.75,0.000378,3]
[311237469,1704989447778,-437.75,0.000378,3]
[311237471,1704989447789,-437.75,0.000378,3]
[311237473,1704989447799,-437.75,0.000378,3]
[311237476,1704989447809,-437.75,0.000378,3]
[311237478,1704989447818,-437.75,0.000378,3]
[311237480,1704989447828,-437.75,0.000378,3]
[311237482,1704989447837,-437.75,0.000378,3]
[311237484,1704989447846,-437.75,0.000378,3]
[311237486,1704989447856,-437.75,0.000378,3]
[311237488,1704989447865,-437.75,0.000378,3]
[311237490,1704989447874,-4686.07,0.00037808,2]
[311237492,1704989447890,-2480.9,0.00037808,2]
[311237494,1704989447899,-200.0,0.0003789,7]
[311237496,1704989447909,-200.0,0.0003789,7]
[311237498,1704989447919,-200.0,0.0003789,7]
[311237499,1704989447930,-2196.40959209,0.00037897,2]
[311237501,1704989447939,-150.0,0.00037899,2]
[311237504,1704989447949,-150.0,0.00037899,2]
[311237506,1704989447958,-453.19,0.000379,2]
[311237507,1704989447967,-1956.07,0.000379,7]
[311237509,1704989447977,-500.0,0.000379,13]
[311237511,1704989447986,-610691.717841,0.000379,3]
[311237514,1704989447996,-7999.99,0.00037935,14]
[311237521,1704989448049,-496.325101,0.00037935,2]
[311237523,1704989448059,-399.135471,0.00037935,2]
[311237525,1704989448068,-2161.108045,0.00037935,2]
[311237527,1704989448077,-3466.81563,0.00037935,2]
[311237528,1704989448086,-855.576108,0.00037935,2]
[311237530,1704989448095,-242.09863262,0.00037949,7]
[311237532,1704989448105,-200.0,0.00037987,4]
[311237535,1704989448114,-2196.40959209,0.00037997,2]
[311237537,1704989448123,-445.03249275,0.00037998,4]
[311237539,1704989448133,-155.0,0.00037998,4]
[311237541,1704989448143,-500.0,0.00037999,7]
[311237543,1704989448152,-182.50916276,0.00037999,7]
[311237545,1704989448162,-334.90093218,0.00037999,7]
[311237547,1704989448172,-500.0,0.00037999,7]
[311237549,1704989448182,-530.33485298,0.00037999,7]
[311237551,1704989448191,-500.0,0.00037999,7]
[311237553,1704989448200,-264.7813892,0.00037999,7]
[311237555,1704989448209,-500.0,0.00037999,7]
[311237557,1704989448218,-365.98494885,0.00037999,7]
[311237558,1704989448227,-182.99247442,0.00037999,7]
[311237561,1704989448236,-100000.0,0.00038,8]
[311237563,1704989448246,-3633.97,0.00038,30]
[311237565,1704989448255,-299.999999,0.00038,39]
[311237566,1704989448264,-3060.04420173,0.00038,4]
[311237568,1704989448274,-1049.67172007,0.00038,2]
[311237570,1704989448282,-1672.67465769,0.00038,4]
[311237572,1704989448291,-352454.26080164,0.00038,2]
[311237574,1704989448300,-206.12530117,0.00038,2]
[311237576,1704989448308,-1000.0,0.00038,8]
[311237578,1704989448318,-1000.0,0.00038,8]
[311237580,1704989448327,-771.8832493,0.00038,2]
[311237582,1704989448337,-771.8832493,0.00038,2]
[311237585,1704989448350,-771.8832493,0.00038,2]
[311237587,1704989448362,-771.8832493,0.00038,2]
[311237589,1704989448371,-771.8832493,0.00038,2]
[311237590,1704989448381,-771.8832493,0.00038,2]
[311237592,1704989448392,-771.8832493,0.00038,2]
[311237594,1704989448401,-771.8832493,0.00038,2]
[311237596,1704989448409,-771.8832493,0.00038,2]
[311237598,1704989448421,-771.8832493,0.00038,2]
[311237600,1704989448430,-771.8832493,0.00038,2]
[311237602,1704989448439,-771.8832493,0.00038,2]
[311237604,1704989448449,-771.8832493,0.00038,2]
[311237607,1704989448459,-771.8832493,0.00038,2]
[311237609,1704989448470,-771.8832493,0.00038,2]
[311237610,1704989448479,-771.8832493,0.00038,2]
[311237612,1704989448488,-771.8832493,0.00038,2]
[311237615,1704989448497,-771.8832493,0.00038,2]
[311237616,1704989448506,-771.8832493,0.00038,2]
[311237618,1704989448515,-771.8832493,0.00038,2]
[311237621,1704989448525,-771.8832493,0.00038,2]
[311237622,1704989448534,-771.8832493,0.00038,2]
[311237624,1704989448543,-771.8832493,0.00038,2]
[311237626,1704989448553,-771.8832493,0.00038,2]
[311237629,1704989448562,-771.8832493,0.00038,2]
[311237630,1704989448571,-771.8832493,0.00038,2]
[311237633,1704989448581,-771.8832493,0.00038,2]
[311237635,1704989448590,-771.8832493,0.00038,2]
[311237636,1704989448599,-771.8832493,0.00038,2]
[311237638,1704989448609,-771.8832493,0.00038,2]
[311237640,1704989448618,-231.45648069,0.00038,2]
[311237642,1704989448627,-231.45648069,0.00038,2]
[311237645,1704989448637,-231.45648069,0.00038,2]
[311237646,1704989448646,-231.45648069,0.00038,2]
[311237648,1704989448655,-231.45648069,0.00038,2]
[311237650,1704989448665,-231.45648069,0.00038,2]
[311237653,1704989448677,-231.45648069,0.00038,2]
[311237655,1704989448686,-231.45648069,0.00038,2]
[311237657,1704989448695,-231.45648069,0.00038,2]
[311237659,1704989448704,-231.45648069,0.00038,2]
[311237661,1704989448713,-231.45648069,0.00038,2]
[311237663,1704989448723,-231.45648069,0.00038,2]
[311237665,1704989448732,-231.45648069,0.00038,2]
[311237667,1704989448741,-231.45648069,0.00038,2]
[311237669,1704989448751,-231.45648069,0.00038,2]
[311237671,1704989448760,-231.45648069,0.00038,2]
[311237673,1704989448769,-231.45648069,0.00038,2]
[311237675,1704989448778,-231.45648069,0.00038,2]
[311237677,1704989448787,-231.45648069,0.00038,2]
[311237679,1704989448797,-231.45648069,0.00038,2]
[311237681,1704989448806,-231.45648069,0.00038,2]
[311237683,1704989448815,-231.45648069,0.00038,2]
[311237685,1704989448825,-231.45648069,0.00038,2]
[311237687,1704989448834,-231.45648069,0.00038,2]
[311237689,1704989448843,-231.45648069,0.00038,2]
[311237691,1704989448852,-231.45648069,0.00038,2]
[311237693,1704989448862,-231.45648069,0.00038,2]
[311237695,1704989448873,-231.45648069,0.00038,2]
[311237697,1704989448884,-231.45648069,0.00038,2]
[311237699,1704989448893,-231.45648069,0.00038,2]
[311237701,1704989448903,-242.09863262,0.00038034,7]
[311237703,1704989448912,-7916.87752569,0.00038082,11]
[311237705,1704989448927,-153.09999134,0.00038135,2]
[311237707,1704989448936,-70800.42835919,0.00038142,2]
[311237709,1704989448945,-242.09863262,0.00038279,7]
[311237711,1704989448954,-897.48,0.00038309,2]
[311237713,1704989448964,-150.0,0.00038329,2]
[311237715,1704989448974,-150.0,0.00038329,2]
[311237717,1704989448982,-22735.9795329,0.0003833,10]
[311237718,1704989448991,-2741.42,0.00038352,2]
[311237721,1704989449001,-1348.71024854,0.00038356,30]
[311237723,1704989449011,-666.0,0.00038356,2]
[311237725,1704989449020,-500.0,0.00038356,2]
[311237727,1704989449029,-153.84,0.00038356,2]
[311237728,1704989449039,-200.0,0.00038356,2]
[311237731,1704989449048,-3868.0,0.00038356,10]
[311237732,1704989449058,-21927.89,0.00038356,2]
[311237734,1704989449067,-496.325101,0.00038398,2]
[311237736,1704989449076,-399.135471,0.00038398,2]
[311237738,1704989449085,-2161.108045,0.00038398,2]
[311237740,1704989449095,-3466.81563,0.00038398,2]
[311237742,1704989449104,-855.576108,0.00038398,2]